bitfinex-derivatives/quotes_SOLF0:USTF0_20240913
["timestamp","ask_amount","ask_price","bid_price","bid_amount"]
[1726201891868,3.7092,134.79,134.77,248.24168804]
[1726201893273,3.7092,134.79,134.77,251.95148804]
[1726201896073,15.1191,134.8,134.77,251.95148804]
[1726201897570,15.1188,134.81,134.78,3.7095]
[1726201913786,3.709,134.8,134.78,3.7095]
[1726201919410,3.7093,134.79,134.77,251.95138804]
[1726201920606,3.7093,134.79,134.77,248.24168804]
[1726201920810,11.41,134.78,134.75,1.4163]
[1726201921011,11.41,134.76,134.71,12.8227]
[1726201921198,11.41,134.76,134.72,3.7109]
[1726201921403,15.1203,134.76,134.72,3.7109]
[1726201921904,11.41,134.76,134.72,3.7109]
[1726201922896,3.7104,134.75,134.72,3.7109]
[1726201924215,11.41,134.74,134.7,1.3777]
[1726201925209,3.7111,134.73,134.7,1.3777]
[1726201925510,15.1211,134.73,134.7,1.3777]
[1726201925705,15.1212,134.72,134.68,3.7121]
[1726201925914,11.41,134.72,134.67,14.04]
[1726201926309,15.1213,134.72,134.68,3.7121]
[1726201926913,11.41,134.72,134.68,3.7121]
[1726201927113,3.7116,134.71,134.67,16.4426]
[1726201927318,11.41,134.71,134.67,1.3202]
[1726201928817,3.7119,134.7,134.67,5.0327]
[1726201930518,15.1219,134.7,134.67,5.0327]
[1726201931416,15.1219,134.7,134.67,1.3202]
[1726201932306,15.1219,134.7,134.66,3.7127]
[1726201932710,3.712,134.69,134.66,3.7127]
[1726201932920,11.41,134.68,134.65,3.713]
[1726201933119,11.41,134.68,134.63,14.2398]
[1726201933321,15.1221,134.69,134.64,11.41]
[1726201933516,15.1221,134.69,134.66,3.7127]
[1726201938128,3.7117,134.71,134.67,3.7124]
[1726201938331,3.7117,134.71,134.67,11.41]
[1726201939434,3.7117,134.71,134.68,3.7122]
[1726201941333,15.1217,134.71,134.68,3.7122]
[1726201941537,1.3836,134.74,134.66,3.7126]
[1726201941538,11.41,134.7,134.66,3.7126]
[1726201941734,11.41,134.68,134.66,3.7126]
[1726201942829,11.41,134.68,134.63,14.2398]
[1726201943631,11.41,134.66,134.63,1.4145]
[1726201944226,11.41,134.66,134.64,3.7132]
[1726201945530,11.41,134.65,134.63,5.1281]
[1726201945837,11.41,134.65,134.63,3.7136]
[1726201948139,11.41,134.65,134.62,1.4143]
[1726201948345,11.41,134.64,134.59,12.7436]
[1726201948841,11.41,134.64,134.61,3.714]
[1726201950442,11.41,134.63,134.6,3.7143]
[1726201951331,11.41,134.63,134.61,3.7141]
[1726201954141,15.1237,134.63,134.6,3.7144]
[1726201955548,11.41,134.63,134.61,3.7142]
[1726201958547,11.41,134.63,134.62,3.7139]
[1726201959545,3.7132,134.65,134.62,3.7139]
[1726201959740,11.41,134.63,134.62,3.7139]
[1726201960155,11.41,134.63,134.61,3.7141]
[1726201962643,11.41,134.62,134.61,3.7141]
[1726201971348,11.41,134.63,134.61,3.7141]
[1726201979257,11.41,134.62,134.6,3.7144]
[1726201979652,11.41,134.61,134.58,1.4083]
[1726201979863,11.41,134.6,134.58,1.4083]
[1726201980057,3.7141,134.62,134.58,1.4083]
[1726201980259,2.0972,134.66,134.58,1.4083]
[1726201980563,11.41,134.62,134.61,3.7142]
[1726201982368,11.41,134.62,134.6,3.7143]
[1726201982550,11.41,134.61,134.6,3.7143]
[1726201982871,11.41,134.61,134.59,3.7147]
[1726201992089,11.41,134.6,134.58,1.4083]
[1726201992288,11.41,134.59,134.58,1.4083]
[1726201993179,11.41,134.59,134.58,5.1233]
[1726201994467,11.41,134.59,134.58,1.4083]
[1726201994683,11.41,134.59,134.57,3.7152]
[1726201995381,15.1248,134.59,134.56,3.7154]
[1726201996788,11.41,134.59,134.56,3.7154]
[1726201999501,3.68264585,134.64,134.54,3.716]
[1726201999502,11.41,134.57,134.54,3.716]
[1726201999686,3.68264585,134.64,134.52,2.6954]
[1726201999687,11.41,134.55,134.52,2.6954]
[1726202000192,11.41,134.55,134.54,3.716]
[1726202001178,11.41,134.55,134.52,2.6954]
[1726202001786,11.41,134.55,134.54,3.7161]
[1726202003490,11.41,134.55,134.53,3.7163]
[1726202005295,11.41,134.54,134.52,3.7166]
[1726202005491,11.41,134.53,134.52,3.7166]
[1726202009890,3.7157,134.56,134.52,3.7166]
[1726202010089,11.41,134.54,134.52,3.7166]
[1726202010698,3.7157,134.56,134.53,3.7164]
[1726202010998,11.41,134.54,134.53,3.7164]
[1726202015209,3.7157,134.56,134.53,3.7164]
[1726202015405,7.4252,134.67,134.53,11.41]
[1726202015604,11.41,134.58,134.54,1.3676]
[1726202016114,11.41,134.57,134.55,3.7157]
[1726202016705,11.41,134.56,134.54,5.0836]
[1726202017502,11.41,134.56,134.54,1.3676]
[1726202017708,11.41,134.55,134.53,3.7162]
[1726202018816,11.41,134.55,134.54,3.7161]
[1726202026024,11.41,134.55,134.53,3.7163]
[1726202030726,11.41,134.55,134.54,3.7161]
[1726202031218,11.41,134.55,134.53,3.7164]
[1726202031425,11.41,134.54,134.53,3.7164]
[1726202031728,11.41,134.54,134.51,1.3998]
[1726202032227,11.41,134.54,134.52,3.7165]
[1726202032424,11.41,134.54,134.51,1.3998]
[1726202033425,2.1565,134.61,134.53,3.7161]
[1726202033732,11.41,134.55,134.53,3.7161]
[1726202042137,3.7154,134.57,134.54,3.7161]
[1726202042434,11.41,134.55,134.54,3.7161]
[1726202045434,2.1565,134.61,134.51,1.3998]
[1726202045631,11.41,134.56,134.55,3.7157]
[1726202046028,11.41,134.56,134.51,12.8098]
[1726202046837,11.41,134.56,134.54,3.716]
[1726202055034,11.41,134.55,134.53,3.7162]
[1726202055339,11.41,134.54,134.51,1.3998]
[1726202055538,2.1565,134.61,134.52,3.7166]
[1726202055539,11.41,134.53,134.52,3.7166]
[1726202057742,11.41,134.53,134.51,1.3998]
[1726202058538,11.41,134.53,134.51,5.1166]
[1726202060051,11.41,134.53,134.52,3.7167]
[1726202060646,11.41,134.53,134.51,1.3998]
[1726202060647,11.41,134.53,134.51,5.1167]
[1726202060850,11.41,134.53,134.51,3.7169]
[1726202061551,11.41,134.52,134.51,3.7169]
[1726202065057,3.716,134.55,134.52,3.7167]
[1726202065257,11.41,134.53,134.52,3.7167]
[1726202084178,3.7157,134.56,134.52,3.7167]
[1726202084385,11.41,134.53,134.52,3.7167]
[1726202086073,3.7154,134.57,134.5,11.41]
[1726202086371,11.41,134.54,134.5,12.7276]
[1726202086688,11.41,134.54,134.51,5.10039194]
[1726202086888,11.41,134.54,134.5,12.7276]
[1726202087183,11.41,134.54,134.52,3.7165]
[1726202087579,11.41,134.53,134.52,3.7165]
[1726202090372,3.7154,134.57,134.5,12.7276]
[1726202090685,3.7154,134.57,134.51,16.51012054]
[1726202090686,11.41,134.56,134.51,16.51012054]
[1726202090883,3.7151,134.58,134.54,3.7159]
[1726202091088,11.41,134.57,134.52,11.41]
[1726202091392,3.7151,134.58,134.54,11.41]
[1726202091393,11.41,134.58,134.54,11.41]
[1726202091695,11.41,134.58,134.56,3.7154]
[1726202095383,3.7146,134.6,134.56,3.7154]
[1726202095585,11.41,134.58,134.56,3.7154]
[1726202095987,160.28802811,134.62,134.57,3.7151]
[1726202096184,11.41,134.59,134.54,11.41]
[1726202096986,11.41,134.59,134.56,3.7154]
[1726202102486,11.41,134.59,134.54,11.41]
[1726202103082,15.1249,134.59,134.56,3.7154]
[1726202103588,11.41,134.59,134.56,3.7154]
[1726202104183,3.7147,134.6,134.56,3.7154]
[1726202104395,11.41,134.58,134.56,3.7154]
[1726202105687,156.64208872,134.63,134.55,11.41]
[1726202105889,11.41,134.6,134.56,11.41]
[1726202106589,11.41,134.6,134.58,3.7149]
[1726202109188,11.41,134.6,134.59,3.7148]
[1726202113605,11.41,134.61,134.59,3.7148]
[1726202115899,11.41,134.6,134.54,127.06949235]
[1726202116197,11.41,134.57,134.54,127.06949235]
[1726202116397,11.41,134.57,134.54,125.64259235]
[1726202117912,11.41,134.57,134.55,3.7156]
[1726202118394,11.41,134.57,134.54,125.64259235]
[1726202118697,11.41,134.57,134.54,129.35859235]
[1726202119388,15.1252,134.58,134.55,3.7158]
[1726202120191,15.1256,134.56,134.52,3.7165]
[1726202120890,3.7159,134.55,134.52,3.7165]
[1726202121105,11.41,134.55,134.5,3.7171]
[1726202121401,11.41,134.55,134.49,11.41]
[1726202121699,15.126,134.55,134.52,3.7167]
[1726202126002,15.1257,134.56,134.53,3.7163]
[1726202126599,3.716,134.55,134.52,3.7165]
[1726202129298,3.70150286,134.61,134.51,11.41]
[1726202129499,11.41,134.56,134.51,11.41]
[1726202130393,11.41,134.56,134.53,3.7164]
[1726202130913,15.1258,134.56,134.53,3.7164]
[1726202131710,3.7159,134.55,134.53,3.7164]
[1726202138710,3.7157,134.56,134.54,3.7161]
[1726202138905,17.8471839,134.62,134.54,11.41]
[1726202139220,11.41,134.59,134.54,11.41]
[1726202139919,3.7152,134.58,134.54,11.41]
[1726202140504,3.7158,134.56,134.52,14.0415]
[1726202140701,3.7158,134.56,134.49,5.10021001]
[1726202141018,11.41,134.54,134.52,3.7166]
[1726202141420,17.84585285,134.62,134.53,3.7164]
[1726202141715,11.41,134.57,134.53,11.41]
[1726202142106,3.7154,134.57,134.54,3.716]
[1726202144614,15.1254,134.57,134.54,3.716]
[1726202144820,3.7156,134.56,134.54,3.716]
[1726202148118,11.41,134.57,134.54,3.716]
[1726202148326,3.7155,134.57,134.54,3.716]
[1726202148527,15.1255,134.57,134.54,3.716]
[1726202148916,3.7156,134.56,134.54,3.716]
[1726202153230,3.7156,134.56,134.52,11.41]
[1726202153429,3.7156,134.56,134.53,3.7163]
[1726202154721,15.1256,134.56,134.53,3.7163]
[1726202156233,3.7159,134.55,134.52,3.7165]
[1726202162525,3.7159,134.55,134.53,3.7164]
[1726202162921,17.84585285,134.62,134.53,11.41]
[1726202163119,11.41,134.59,134.55,11.41]
[1726202163524,1.15134425,134.61,134.53,11.41]
[1726202163525,15.1251,134.58,134.53,11.41]
[1726202163734,15.1251,134.58,134.55,3.7157]
[1726202165731,15.1251,134.58,134.56,3.7156]
[1726202166542,15.1251,134.58,134.55,3.7157]
[1726202167939,11.41,134.59,134.55,11.41]
[1726202168234,156.63545567,134.63,134.58,11.41]
[1726202168434,11.41,134.62,134.58,11.41]
[1726202169135,15.1244,134.61,134.58,3.7149]
[1726202170429,3.7144,134.61,134.58,3.7149]
[1726202170628,15.1244,134.61,134.58,3.7149]
[1726202171030,3.7144,134.61,134.58,3.7149]
[1726202171541,156.63545567,134.63,134.58,11.41]
[1726202171745,168.04545567,134.63,134.58,11.41]
[1726202172041,160.34925567,134.63,134.59,15.1245]
[1726202173434,171.75925567,134.63,134.59,15.1245]
[1726202173634,171.75925567,134.63,134.59,3.7145]
[1726202173837,3.714,134.62,134.59,3.7145]
[1726202178743,3.7138,134.63,134.59,3.7145]
[1726202178947,8.837,134.69,134.61,11.41]
[1726202178948,11.41,134.66,134.61,11.41]
[1726202179341,3.7132,134.65,134.62,3.7138]
[1726202180348,3.7132,134.65,134.63,3.7136]
[1726202180942,15.71972846,134.72,134.64,11.41]
[1726202181143,1.15210953,134.71,134.67,11.41]
[1726202181348,1.15210953,134.71,134.65,3.9417]
[1726202181547,11.41,134.69,134.65,2.6354]
[1726202181850,313.27091135,134.73,134.62,11.41]
[1726202181851,11.41,134.67,134.62,11.41]
[1726202182242,11.41,134.68,134.63,11.41]
[1726202183150,313.27091135,134.73,134.66,11.41]
[1726202183347,11.41,134.7,134.66,11.41]
[1726202183948,15.1216,134.71,134.67,11.41]
[1726202184142,3.7117,134.7,134.67,15.1223]
[1726202186053,15.1222,134.69,134.61,11.4059]
[1726202186247,11.41,134.68,134.64,11.41]
[1726202187353,11.41,134.68,134.65,3.7128]
[1726202187548,11.41,134.68,134.61,11.4059]
[1726202187549,11.41,134.67,134.61,3.9669]
[1726202187749,11.41,134.65,134.61,15.3769]
[1726202187950,11.41,134.65,134.62,3.7137]
[1726202188461,11.41,134.65,134.63,3.7135]
[1726202189252,15.1231,134.65,134.62,3.7138]
[1726202189449,11.41,134.64,134.62,3.7138]
[1726202189648,11.41,134.64,134.61,2.6417]
[1726202189849,15.1235,134.64,134.61,6.3558]
[1726202190551,15.1235,134.64,134.61,5.0223]
[1726202191770,3.7137,134.63,134.6,3.7144]
[1726202194763,3.714,134.62,134.59,3.7146]
[1726202197062,11.41,134.62,134.58,6.5459]
[1726202197360,11.41,134.62,134.57,11.41]
[1726202197562,11.41,134.6,134.57,11.41]
[1726202197745,15.1245,134.6,134.57,15.1251]
[1726202197949,11.41,134.6,134.57,11.41]
[1726202198557,15.1243,134.61,134.58,3.7149]
[1726202200164,3.7145,134.6,134.57,3.7152]
[1726202204167,15.1245,134.6,134.57,3.7152]
[1726202214080,11.41,134.6,134.58,3.715]
[1726202215868,15.1245,134.6,134.58,3.715]
[1726202216268,15.125,134.59,134.54,124.3103067]
[1726202216463,11.41,134.58,134.54,124.3103067]
[1726202216977,11.41,134.58,134.53,4.0221]
[1726202217179,11.41,134.58,134.53,15.4321]
[1726202217474,11.41,134.58,134.53,4.0221]
[1726202217675,15.1249,134.59,134.54,11.41]
[1726202218372,15.1249,134.59,134.55,3.7157]
[1726202220276,15.1249,134.59,134.56,3.7154]
[1726202221968,3.7149,134.59,134.56,3.7154]
[1726202222168,15.1249,134.59,134.56,3.7154]
[1726202222983,15.1249,134.59,134.57,3.7153]
[1726202223172,3.7149,134.59,134.57,3.7153]
[1726202223373,15.1249,134.59,134.57,3.7153]
[1726202228184,11.41,134.59,134.57,3.7153]
[1726202229684,15.1248,134.59,134.57,3.7153]
[1726202233687,3.715,134.58,134.53,19.17252722]
[1726202233882,11.41,134.59,134.53,19.17252722]
[1726202234083,15.1249,134.59,134.56,3.7154]
[1726202241596,3.7146,134.6,134.54,11.41]
[1726202241779,11.41,134.62,134.56,11.41]
[1726202241977,11.41,134.62,134.53,7.76252722]
[1726202241978,11.41,134.62,134.57,11.41]
[1726202242182,3.7142,134.61,134.58,3.7148]
[1726202242388,156.63087946,134.64,134.58,11.41]
[1726202242688,156.63087946,134.64,134.53,7.76252722]
[1726202242689,156.63087946,134.64,134.6,11.41]
[1726202243090,0.793,134.7,134.63,11.41]
[1726202243288,11.41,134.67,134.63,11.41]
[1726202243499,11.41,134.67,134.64,3.7133]
[1726202244189,15.1227,134.67,134.64,3.7133]
[1726202245483,15.1227,134.67,134.63,15.1235]
[1726202246080,15.1227,134.67,134.63,3.7135]
[1726202246797,11.41,134.66,134.63,3.7135]
[1726202247395,11.41,134.66,134.64,3.7134]
[1726202247589,15.1224,134.68,134.64,3.7134]
[1726202248798,11.41,134.67,134.64,3.7134]
[1726202249787,11.41,134.67,134.65,3.7131]
[1726202251488,11.41,134.67,134.64,3.7132]
[1726202252497,11.41,134.67,134.65,3.7131]
[1726202253002,11.41,134.67,134.63,11.41]
[1726202253297,11.41,134.67,134.64,3.7132]
[1726202254600,15.1227,134.67,134.64,3.7132]
[1726202258404,15.1229,134.66,134.64,3.7132]
[1726202259800,11.41,134.66,134.64,3.7132]
[1726202261091,3.7127,134.67,134.64,3.7132]
[1726202264098,3.7128,134.66,134.64,3.7132]
[1726202265891,3.7128,134.66,134.63,15.1235]
[1726202267802,3.7128,134.66,134.64,3.7133]
[1726202268002,3.7128,134.66,134.63,11.41]
[1726202268304,3.7128,134.66,134.62,11.41]
[1726202268619,11.41,134.66,134.62,11.41]
[1726202269499,3.7135,134.64,134.62,11.41]
[1726202270803,3.7135,134.64,134.62,15.1238]
[1726202271503,3.7135,134.64,134.62,3.7138]
[1726202275419,15.1232,134.65,134.62,3.7138]
[1726202278513,3.7135,134.64,134.62,3.7138]
[1726202282825,15.1232,134.65,134.62,3.7138]
[1726202283826,3.7129,134.66,134.64,11.41]
[1726202284726,11.41,134.69,134.65,11.41]
[1726202285634,3.7123,134.68,134.65,11.41]
[1726202286220,3.7123,134.68,134.65,15.123]
[1726202290927,15.1223,134.68,134.65,15.123]
[1726202292128,15.1223,134.68,134.65,3.713]
[1726202294134,15.1223,134.68,134.66,3.7128]
[1726202294523,15.1223,134.68,134.64,11.41]
[1726202295327,15.1223,134.68,134.65,3.713]
[1726202303740,3.7126,134.67,134.65,3.713]
[1726202304947,11.41,134.67,134.64,3.7133]
[1726202306047,11.41,134.66,134.63,3.7136]
[1726202306245,11.41,134.64,134.61,14.2063]
[1726202306435,15.1236,134.64,134.61,6.5104]
[1726202311239,15.1236,134.64,134.61,17.9204]
[1726202323162,15.1236,134.64,134.61,6.5104]
[1726202323358,3.7137,134.63,134.6,15.1245]
[1726202323760,3.7137,134.63,134.61,3.7141]
[1726202326460,3.7137,134.63,134.6,11.41]
[1726202326662,3.7137,134.63,134.6,15.1243]
[1726202326962,15.1237,134.63,134.6,3.7143]
[1726202332479,15.1237,134.63,134.61,3.7141]
[1726202336481,15.1237,134.63,134.6,3.7143]
[1726202338887,3.67206658,134.65,134.56,2.7824]
[1726202338888,11.41,134.61,134.56,2.7824]
[1726202339070,11.41,134.61,134.57,5.0958731]
[1726202339273,11.41,134.61,134.56,14.1924]
[1726202339578,3.7146,134.6,134.57,3.7151]
[1726202340580,15.1243,134.61,134.58,3.715]
[1726202347791,11.41,134.61,134.59,3.7147]
[1726202348985,15.1242,134.61,134.59,3.7147]
[1726202350781,3.7141,134.62,134.6,3.7144]
[1726202351199,11.41,134.63,134.6,3.7144]
[1726202351714,15.1238,134.63,134.6,3.7144]
[1726202353696,3.714,134.62,134.6,3.7144]
[1726202355087,15.124,134.62,134.6,3.7144]
[1726202356394,3.7142,134.61,134.59,3.7147]
[1726202356600,11.41,134.61,134.56,14.1924]
[1726202357400,15.1243,134.61,134.58,3.7148]
[1726202364207,11.41,134.6,134.57,3.7152]
[1726202364405,11.41,134.58,134.56,2.7824]
[1726202364910,11.41,134.58,134.56,6.4977]
[1726202367705,11.41,134.57,134.53,125.6905899]
[1726202367900,11.41,134.57,134.53,137.1005899]
[1726202368403,15.1254,134.57,134.54,3.716]
[1726202368604,11.41,134.56,134.52,2.8279]
[1726202368994,11.41,134.54,134.52,6.5444]
[1726202369199,11.41,134.54,134.52,5.1122]
[1726202371104,15.1262,134.54,134.52,1.3957]
[1726202371301,11.41,134.53,134.49,1.3842]
[1726202371508,11.41,134.53,134.49,12.7942]
[1726202372014,11.41,134.53,134.51,3.7168]
[1726202375613,11.41,134.53,134.49,3.7173]
[1726202375614,15.1266,134.53,134.49,3.7173]
[1726202375802,15.1266,134.53,134.48,11.41]
[1726202376913,15.1266,134.53,134.47,1.3165]
[1726202377111,15.1266,134.53,134.48,11.41]
[1726202377920,15.1266,134.53,134.5,3.7171]
[1726202383808,3.7166,134.53,134.5,3.7171]
[1726202384014,15.1263,134.54,134.51,3.7169]
[1726202385716,11.41,134.54,134.52,3.7167]
[1726202386827,15.1262,134.54,134.51,3.7168]
[1726202387922,11.41,134.53,134.51,3.7168]
[1726202395536,3.7162,134.54,134.51,3.7168]
[1726202395831,11.41,134.52,134.51,3.7168]
[1726202396136,11.41,134.52,134.5,3.7171]
[1726202400530,3.7162,134.54,134.51,3.717]
[1726202400739,11.41,134.53,134.51,3.717]
[1726202402238,1.3713,134.57,134.51,3.717]
[1726202402433,0.7933,134.62,134.49,11.41]
[1726202402638,11.41,134.55,134.51,11.41]
[1726202403029,5.84849096,134.62,134.52,12.7647]
[1726202403236,11.41,134.58,134.54,11.41]
[1726202403634,11.41,134.58,134.57,3.7152]
[1726202405348,11.41,134.58,134.56,3.7155]
[1726202408753,11.41,134.57,134.55,3.7158]
[1726202408944,3.7151,134.58,134.55,3.7158]
[1726202408945,11.41,134.56,134.55,3.7158]
[1726202409555,11.41,134.56,134.53,1.3486]
[1726202410051,11.41,134.56,134.55,3.7159]
[1726202411052,3.7149,134.59,134.56,3.7155]
[1726202411244,11.41,134.57,134.56,3.7155]
[1726202416461,11.41,134.57,134.55,3.7157]
[1726202421142,5.84849096,134.62,134.53,3.7163]
[1726202421143,15.1256,134.56,134.53,3.7163]
[1726202421458,11.41,134.54,134.53,3.7163]
[1726202421952,11.41,134.55,134.53,3.7163]
[1726202424861,15.1259,134.55,134.52,5.0712]
[1726202425066,11.41,134.54,134.52,3.7165]
[1726202425258,11.41,134.53,134.49,5.10018956]
[1726202425856,11.41,134.53,134.51,3.7167]
[1726202427660,15.1265,134.53,134.5,3.7171]
[1726202427866,11.41,134.51,134.5,3.7171]
[1726202428161,11.41,134.51,134.48,1.3959]
[1726202428358,11.41,134.5,134.48,1.3959]
[1726202429848,11.41,134.5,134.48,5.1136]
[1726202430258,11.41,134.49,134.46,3.7181]
[1726202430563,11.41,134.49,134.45,14.1118]
[1726202430953,11.41,134.49,134.46,3.7183]
[1726202431154,11.41,134.49,134.45,14.1118]
[1726202431853,11.41,134.49,134.46,3.7183]
[1726202432464,11.41,134.49,134.45,14.1118]
[1726202433054,11.41,134.49,134.46,3.7183]
[1726202434265,15.1275,134.49,134.46,3.7183]
[1726202434665,11.41,134.49,134.47,3.7181]
[1726202441275,11.41,134.49,134.48,3.7178]
[1726202442271,11.41,134.49,134.47,3.7179]
[1726202443669,11.41,134.51,134.47,11.41]
[1726202444463,11.41,134.5,134.46,11.41]
[1726202444659,11.41,134.5,134.47,3.718]
[1726202444974,1.4147,134.54,134.47,3.718]
[1726202444975,11.41,134.49,134.47,3.718]
[1726202445164,11.41,134.48,134.46,3.7182]
[1726202445361,11.41,134.48,134.45,2.7018]
[1726202445958,11.41,134.48,134.46,3.7182]
[1726202448163,11.41,134.48,134.47,3.7181]
[1726202448566,11.41,134.49,134.47,3.7181]
[1726202451977,11.41,134.5,134.46,11.41]
[1726202452473,3.7168,134.52,134.47,11.41]
[1726202452779,11.41,134.52,134.48,11.41]
[1726202453271,11.41,134.52,134.5,3.7171]
[1726202458784,11.41,134.51,134.45,6.38290176]
[1726202458970,11.41,134.49,134.45,17.79290176]
[1726202459171,11.41,134.49,134.47,3.7178]
[1726202463288,11.41,134.49,134.48,3.7178]
[1726202467681,11.41,134.49,134.47,3.718]
[1726202468489,11.41,134.49,134.48,3.7178]
[1726202473401,11.41,134.49,134.47,3.7179]
[1726202478113,15.1276,134.49,134.46,3.7183]
[1726202478322,11.41,134.48,134.46,3.7183]
[1726202478623,11.41,134.48,134.45,1.3993]
[1726202479111,11.41,134.47,134.45,5.1178]
[1726202480423,11.41,134.47,134.45,3.7185]
[1726202480712,11.41,134.47,134.44,14.86044456]
[1726202480713,15.1281,134.47,134.44,14.86044456]
[1726202480916,11.41,134.46,134.44,13.55704456]
[1726202481308,11.41,134.45,134.44,9.83824456]
[1726202481711,11.41,134.46,134.44,9.83824456]
[1726202482908,11.41,134.46,134.44,13.55714456]
[1726202487423,11.41,134.47,134.45,3.7186]
[1726202487613,11.41,134.49,134.44,21.24824456]
[1726202488011,3.7177,134.49,134.44,21.24824456]
[1726202488217,156.77243702,134.51,134.45,11.41]
[1726202488423,11.41,134.5,134.45,11.41]
[1726202489922,15.1273,134.5,134.47,3.7179]
[1726202491421,11.41,134.5,134.47,3.7179]
[1726202492727,15.1272,134.5,134.47,3.7179]
[1726202497221,11.41,134.5,134.48,3.7178]
[1726202499519,11.41,134.5,134.46,11.41]
[1726202499520,15.1273,134.5,134.47,3.718]
[1726202501427,15.1273,134.5,134.48,3.7178]
[1726202505434,11.41,134.5,134.48,3.7178]
[1726202506030,160.48953702,134.51,134.46,11.41]
[1726202506234,0.795,134.55,134.44,9.83824456]
[1726202506235,11.41,134.53,134.48,11.41]
[1726202507328,15.1265,134.53,134.49,3.7174]
[1726202510133,15.1267,134.52,134.49,3.7174]
[1726202514045,11.41,134.52,134.5,3.7172]
[1726202515740,3.7162,134.54,134.49,11.41]
[1726202515944,11.41,134.53,134.49,11.41]
[1726202516246,11.41,134.53,134.51,3.7169]
[1726202516939,11.41,134.53,134.49,11.41]
[1726202516940,160.43718379,134.56,134.52,11.41]
[1726202517126,171.84718379,134.56,134.52,11.41]
[1726202517730,11.41,134.53,134.47,5.10102862]
[1726202517936,11.41,134.5,134.46,2.7201]
[1726202518339,11.41,134.5,134.47,3.7179]
[1726202518741,11.41,134.5,134.48,3.7177]
[1726202519247,15.1271,134.51,134.48,3.7177]
[1726202519549,1.3883,134.55,134.44,9.83824456]
[1726202519550,11.41,134.49,134.44,9.83824456]
[1726202519749,11.41,134.47,134.44,9.83824456]
[1726202520249,11.41,134.47,134.44,13.55694456]
[1726202520455,3.77796999,134.52,134.44,9.83824456]
[1726202520456,11.41,134.45,134.44,9.83824456]
[1726202520651,3.7186,134.46,134.44,9.83824456]
[1726202520849,11.41,134.45,134.44,9.83824456]
[1726202521656,11.41,134.45,134.43,7.28350836]
[1726202521837,11.41,134.44,134.43,7.28350836]
[1726202522239,3.7189,134.44,134.43,7.28350836]
[1726202522439,15.1289,134.44,134.43,7.28350836]
[1726202523447,3.7192,134.43,134.42,1.13798441]
[1726202523644,11.41,134.43,134.4,4.44100313]
[1726202523844,11.41,134.41,134.4,4.44100313]
[1726202524050,15.1297,134.41,134.4,4.44100313]
[1726202524446,15.1297,134.41,134.39,8.53816018]
[1726202524447,11.41,134.41,134.39,8.53816018]
[1726202524647,15.13,134.4,134.39,8.53816018]
[1726202524847,15.13,134.4,134.38,7.5607983]